fUST/lending_fUST_20250303
["ID","MTS","AMOUNT","RATE_DAILY","PERIOD"]
[355169757,1740943848190,-500.0,0.00022573,2]
[355169759,1740943848200,-500.0,0.00022573,2]
[355169761,1740943848209,-500.0,0.00022573,2]
[355169763,1740943848219,-500.0,0.00022573,2]
[355169764,1740943848229,-500.0,0.00022573,2]
[355169766,1740943848238,-500.0,0.00022573,2]
[355169768,1740943848248,-500.0,0.00022573,2]
[355169770,1740943848258,-500.0,0.00022573,2]
[355169772,1740943848269,-500.0,0.00022573,2]
[355169774,1740943848279,-500.0,0.00022573,2]
[355169776,1740943848289,-299.57708127,0.00022573,2]
[355169778,1740943848299,-500.0,0.00022573,2]
[355169780,1740943848309,-500.0,0.00022573,2]
[355169782,1740943848318,-500.0,0.00022573,2]
[355169783,1740943848327,-500.0,0.00022573,2]
[355169785,1740943848337,-513.66900385,0.00022573,2]
[355169787,1740943848347,-500.0,0.00022573,2]
[355169789,1740943848357,-500.0,0.00022573,2]
[355169791,1740943848366,-500.0,0.00022573,2]
[355169793,1740943848376,-587.0,0.00022596,2]
[355169795,1740943848386,-500.0,0.00022634,2]
[355169797,1740943848396,-500.0,0.00022634,2]
[355169799,1740943848405,-500.0,0.00022634,2]
[355169801,1740943848415,-500.0,0.00022634,2]
[355169803,1740943848424,-500.0,0.00022634,2]
[355169804,1740943848434,-500.0,0.00022634,2]
[355169805,1740943848443,-544.5,0.00022634,2]
[355169806,1740943848452,-500.0,0.00022634,2]
[355169807,1740943848462,-500.0,0.00022635,2]
[355169808,1740943848473,-500.0,0.00022635,2]
[355169809,1740943848483,-500.0,0.00022635,2]
[355169810,1740943848493,-876.97,0.00022808,2]
[355169811,1740943848504,-671.91,0.00022808,2]
[355169812,1740943848514,-500.0,0.00022808,2]
[355169813,1740943848524,-500.0,0.00022808,2]
[355169814,1740943848534,-500.0,0.00022808,2]
[355169815,1740943848543,-500.0,0.00022808,2]
[355169816,1740943848553,-500.0,0.00022808,2]
[355169817,1740943848563,-1050.62,0.00022808,2]
[355169819,1740943848573,-500.0,0.00022809,2]
[355169821,1740943848582,-500.0,0.00022809,2]
[355169823,1740943848592,-500.0,0.00022809,2]
[355169825,1740943848601,-500.0,0.00022809,2]
[355169826,1740943848611,-529.91,0.00022809,2]
[355169828,1740943848621,-500.0,0.00022809,2]
[355169830,1740943848630,-570.37225981,0.00022809,2]
[355169832,1740943848640,-500.0,0.00022809,2]
[355169834,1740943848650,-500.0,0.00022809,2]
[355169836,1740943848659,-500.0,0.00022809,2]
[355169838,1740943848669,-500.0,0.00022809,2]
[355169840,1740943848679,-500.0,0.00022809,2]
[355169842,1740943848689,-500.0,0.00022809,2]
[355169844,1740943848698,-500.0,0.00022809,2]
[355169846,1740943848707,-500.0,0.00022809,2]
[355169848,1740943848716,-500.0,0.00022809,2]
[355169850,1740943848726,-500.0,0.00022809,2]
[355169852,1740943848735,-500.0,0.00022809,2]
[355169854,1740943848745,-500.0,0.00022809,2]
[355169856,1740943848755,-479.5731423,0.00022809,2]
[355169858,1740943848766,-500.0,0.00022809,2]
[355169860,1740943848776,-500.0,0.00022809,2]
[355169862,1740943848786,-500.0,0.00022809,2]
[355169864,1740943848796,-500.0,0.00022809,2]
[355169866,1740943848806,-500.0,0.00022809,2]
[355169868,1740943848815,-500.0,0.00022809,2]
[355169869,1740943848825,-500.0,0.00022809,2]
[355169871,1740943848834,-500.0,0.00022809,2]
[355169873,1740943848844,-500.0,0.00022809,2]
[355169875,1740943848853,-500.0,0.00022809,2]
[355169877,1740943848863,-500.0,0.00022809,2]
[355169879,1740943848873,-500.0,0.00022809,2]
[355169881,1740943848882,-500.0,0.00022809,2]
[355169883,1740943848892,-500.0,0.00022809,2]
[355169885,1740943848902,-2712.97,0.00022809,2]
[355169887,1740943848912,-500.0,0.00022809,2]
[355169889,1740943848921,-281.14971589,0.00022809,2]
[355169891,1740943848931,-500.0,0.00022809,2]
[355169893,1740943848940,-500.0,0.00022809,2]
[355169895,1740943848949,-500.0,0.00022809,2]
[355169897,1740943848959,-500.0,0.00022809,2]
[355169899,1740943848969,-6150.41,0.00022809,2]
[355169901,1740943848978,-500.0,0.00022809,2]
[355169903,1740943848988,-1369.99,0.00022809,2]
[355169905,1740943848998,-500.0,0.00022809,2]
[355169907,1740943849008,-500.0,0.00022809,2]
[355169909,1740943849023,-500.0,0.00022809,2]
[355169911,1740943849033,-500.0,0.00022809,2]
[355169913,1740943849042,-600.00037231,0.00022809,2]
[355169915,1740943849052,-1323.79,0.00022809,2]
[355169917,1740943849063,-436.87622989,0.00022809,2]
[355169919,1740943849072,-684.84,0.00022809,2]
[355169921,1740943849082,-1767.76,0.00022809,2]
[355169923,1740943849093,-500.0,0.00022809,2]
[355169925,1740943849104,-500.0,0.00022809,2]
[355169927,1740943849114,-500.0,0.00022809,2]
[355169929,1740943849124,-1179.19,0.00022809,2]
[355169931,1740943849134,-500.0,0.00022809,2]
[355169933,1740943849144,-500.0,0.00022809,2]
[355169935,1740943849154,-220.61907018,0.00022809,2]
[355169937,1740943849164,-1027.39,0.00022809,2]
[355169939,1740943849174,-500.0,0.00022809,2]
[355169941,1740943849183,-500.0,0.00022809,2]
[355169943,1740943849194,-28830.23,0.00022809,2]
[355169945,1740943849203,-500.0,0.00022809,2]
[355169947,1740943849213,-1197.97,0.00022809,2]
[355169949,1740943849224,-500.0,0.00022809,2]
[355169951,1740943849235,-748.11,0.00022809,2]
[355169953,1740943849244,-500.0,0.00022809,2]
[355169955,1740943849254,-500.0,0.00022809,2]
[355169957,1740943849264,-816.31,0.00022809,2]
[355169959,1740943849274,-532.85253569,0.00022809,2]
[355169961,1740943849283,-500.0,0.00022809,2]
[355169963,1740943849292,-657.54,0.00022809,2]
[355169964,1740943849302,-500.0,0.00022809,2]
[355169966,1740943849312,-3309.1,0.00022809,2]
[355169968,1740943849322,-1343.89,0.00022809,2]
[355169971,1740943849333,-500.0,0.00022809,2]
[355169973,1740943849342,-500.0,0.00022809,2]
[355169974,1740943849352,-500.0,0.00022809,2]
[355169976,1740943849361,-500.0,0.00022809,2]
[355169978,1740943849371,-602.72,0.00022809,2]
[355169980,1740943849381,-500.0,0.00022809,2]
[355169982,1740943849391,-500.0,0.00022809,2]
[355169984,1740943849401,-500.0,0.00022809,2]
[355169986,1740943849410,-500.0,0.00022809,2]
[355169988,1740943849420,-500.0,0.00022809,2]
[355169990,1740943849430,-500.0,0.00022859,2]
[355169992,1740943849439,-500.0,0.00022873,2]
[355169994,1740943849449,-500.0,0.00022873,2]
[355169996,1740943849458,-316.42264927,0.00022873,2]
[355169998,1740943849468,-500.0,0.00022873,2]
[355170000,1740943849477,-500.0,0.00022873,2]
[355170002,1740943849487,-500.0,0.00022873,2]
[355170004,1740943849497,-500.0,0.00022873,2]
[355170006,1740943849507,-500.0,0.00022873,2]
[355170008,1740943849516,-500.0,0.00022873,2]
[355170010,1740943849526,-500.0,0.00022873,2]
[355170012,1740943849535,-500.0,0.00022873,2]
[355170014,1740943849544,-500.0,0.00022908,2]
[355170016,1740943849553,-500.0,0.00022908,2]
[355170018,1740943849563,-500.0,0.00022908,2]
[355170020,1740943849572,-500.0,0.00022908,2]
[355170022,1740943849582,-544.5,0.00022908,2]
[355170023,1740943849592,-500.0,0.00022908,2]
[355170025,1740943849601,-500.0,0.00022909,2]
[355170027,1740943849612,-500.0,0.00022909,2]
[355170029,1740943849621,-279.94,0.00022909,2]
[355170032,1740943849631,-8999.999999,0.00023,2]
[355170034,1740943849641,-296.65128264,0.00023058,2]
[355170036,1740943849651,-876.97,0.00023082,2]
[355170038,1740943849660,-671.91,0.00023082,2]
[355170040,1740943849669,-500.0,0.00023082,2]
[355170042,1740943849678,-500.0,0.00023082,2]
[355170043,1740943849687,-500.0,0.00023082,2]
[355170046,1740943849698,-587.82797238,0.00023082,2]
[355170048,1740943849707,-500.0,0.00023082,2]
[355170050,1740943849717,-1050.62,0.00023082,2]
[355170052,1740943849727,-500.0,0.00023083,2]
[355170054,1740943849736,-500.0,0.00023083,2]
[355170056,1740943849745,-500.0,0.00023083,2]
[355170058,1740943849754,-500.0,0.00023083,2]
[355170060,1740943849764,-500.0,0.00023083,2]
[355170061,1740943849774,-500.0,0.00023083,2]
[355170063,1740943849783,-500.0,0.00023083,2]
[355170065,1740943849793,-500.0,0.00023083,2]
[355170067,1740943849803,-500.0,0.00023083,2]
[355170069,1740943849812,-500.0,0.00023083,2]
[355170071,1740943849822,-500.0,0.00023083,2]
[355170073,1740943849831,-500.0,0.00023083,2]
[355170075,1740943849840,-500.0,0.00023083,2]
[355170077,1740943849850,-500.0,0.00023083,2]
[355170079,1740943849860,-500.0,0.00023083,2]
[355170081,1740943849869,-631.90323501,0.00023083,2]
[355170083,1740943849879,-500.0,0.00023083,2]
[355170086,1740943849891,-606.49967527,0.00023083,2]
[355170087,1740943849901,-500.0,0.00023083,2]
[355170088,1740943849910,-500.0,0.00023083,2]
[355170089,1740943849920,-500.0,0.00023083,2]
[355170090,1740943849929,-500.0,0.00023083,2]
[355170091,1740943849939,-312.85939041,0.00023083,2]
[355170092,1740943849948,-500.0,0.00023083,2]
[355170093,1740943849958,-500.0,0.00023083,2]
[355170094,1740943849967,-500.0,0.00023083,2]
[355170095,1740943849977,-500.0,0.00023083,2]
[355170096,1740943849986,-2712.97,0.00023083,2]
[355170097,1740943849995,-500.0,0.00023083,2]
[355170098,1740943850005,-500.0,0.00023083,2]
[355170099,1740943850016,-500.0,0.00023083,2]
[355170100,1740943850027,-6150.41,0.00023083,2]
[355170101,1740943850036,-500.0,0.00023083,2]
[355170102,1740943850046,-500.0,0.00023083,2]
[355170103,1740943850056,-1369.99,0.00023083,2]
[355170104,1740943850066,-500.0,0.00023083,2]
[355170105,1740943850075,-500.0,0.00023083,2]
[355170106,1740943850085,-500.0,0.00023083,2]
[355170107,1740943850096,-500.0,0.00023083,2]
[355170108,1740943850108,-1323.79,0.00023083,2]
[355170109,1740943850118,-684.84,0.00023083,2]
[355170110,1740943850128,-1767.76,0.00023083,2]
[355170111,1740943850138,-500.0,0.00023083,2]
[355170112,1740943850148,-500.0,0.00023083,2]
[355170113,1740943850157,-500.0,0.00023083,2]
[355170114,1740943850167,-1179.19,0.00023083,2]
[355170115,1740943850177,-500.0,0.00023083,2]
[355170116,1740943850186,-500.0,0.00023083,2]
[355170117,1740943850196,-1027.39,0.00023083,2]
[355170118,1740943850206,-500.0,0.00023083,2]
[355170120,1740943850216,-28830.23,0.00023083,2]
[355170122,1740943850226,-500.0,0.00023083,2]
[355170124,1740943850235,-1197.97,0.00023083,2]
[355170126,1740943850245,-500.0,0.00023083,2]
[355170128,1740943850255,-748.11,0.00023083,2]
[355170130,1740943850266,-500.0,0.00023083,2]
[355170132,1740943850274,-500.0,0.00023083,2]
[355170134,1740943850284,-816.31,0.00023083,2]
[355170136,1740943850294,-500.0,0.00023083,2]
[355170138,1740943850303,-657.54,0.00023083,2]
[355170140,1740943850313,-500.0,0.00023083,2]
[355170142,1740943850322,-3309.1,0.00023083,2]
[355170144,1740943850335,-1343.89,0.00023083,2]
[355170146,1740943850345,-500.0,0.00023083,2]
[355170148,1740943850355,-500.0,0.00023083,2]
[355170150,1740943850365,-485.8,0.00023083,2]
[355170152,1740943850375,-500.0,0.00023083,2]
[355170154,1740943850385,-602.72,0.00023083,2]
[355170156,1740943850394,-500.0,0.00023083,2]
[355170157,1740943850404,-500.0,0.00023083,2]
[355170159,1740943850413,-500.0,0.00023083,2]
[355170161,1740943850423,-500.0,0.00023083,2]
[355170163,1740943850433,-500.0,0.00023083,2]
[355170165,1740943850442,-151.0,0.0002317,7]
[355170167,1740943850451,-151.0,0.0002317,7]
[355170169,1740943850461,-252.277576,0.0002317,7]
[355170171,1740943850470,-160.0,0.0002317,2]
[355170173,1740943850480,-19629.85965445,0.0002317,2]
[355170175,1740943850490,-160.0,0.0002317,2]
[355170177,1740943850500,-160.0,0.0002317,2]
[355170180,1740943850510,-500.0,0.00023182,2]
[355170181,1740943850521,-500.0,0.00023182,2]
[355170183,1740943850530,-500.0,0.00023182,2]
[355170185,1740943850541,-500.0,0.00023182,2]
[355170187,1740943850550,-544.5,0.00023182,2]
[355170189,1740943850560,-500.0,0.00023182,2]
[355170191,1740943850570,-500.0,0.00023183,2]
[355170193,1740943850579,-500.0,0.00023183,2]
[355170195,1740943850589,-876.97,0.00023356,2]
[355170197,1740943850599,-671.91,0.00023356,2]
[355170199,1740943850609,-500.0,0.00023356,2]
[355170201,1740943850618,-500.0,0.00023356,2]
[355170203,1740943850628,-500.0,0.00023356,2]
[355170205,1740943850637,-500.0,0.00023356,2]
[355170207,1740943850647,-1050.62,0.00023356,2]
[355170209,1740943850656,-500.0,0.00023357,2]
[355170211,1740943850666,-500.0,0.00023357,2]
[355170213,1740943850676,-450.67,0.00023357,2]
[355170215,1740943850685,-500.0,0.00023357,2]
[355170217,1740943850694,-252.60744673,0.00023357,2]
[355170219,1740943850704,-500.0,0.00023357,2]
[355170221,1740943850714,-345.23463025,0.00023357,2]
[355170223,1740943850723,-500.0,0.00023357,2]
[355170225,1740943850733,-500.0,0.00023357,2]
[355170227,1740943850742,-500.0,0.00023357,2]
[355170228,1740943850752,-500.0,0.00023357,2]
[355170230,1740943850762,-500.0,0.00023357,2]
[355170232,1740943850772,-500.0,0.00023357,2]
[355170234,1740943850782,-500.0,0.00023357,2]
[355170236,1740943850792,-500.0,0.00023357,2]
[355170238,1740943850801,-500.0,0.00023357,2]
[355170240,1740943850811,-500.0,0.00023357,2]
[355170242,1740943850821,-500.0,0.00023357,2]
[355170244,1740943850831,-500.0,0.00023357,2]
[355170246,1740943850841,-500.0,0.00023357,2]
[355170248,1740943850850,-500.0,0.00023357,2]
[355170250,1740943850860,-500.0,0.00023357,2]
[355170252,1740943850869,-500.0,0.00023357,2]
[355170254,1740943850879,-500.0,0.00023357,2]
[355170256,1740943850888,-2712.97,0.00023357,2]
[355170258,1740943850898,-500.0,0.00023357,2]
[355170260,1740943850907,-500.0,0.00023357,2]
[355170262,1740943850917,-500.0,0.00023357,2]
[355170263,1740943850926,-6150.41,0.00023357,2]
[355170265,1740943850936,-500.0,0.00023357,2]
[355170267,1740943850945,-500.0,0.00023357,2]
[355170269,1740943850954,-1369.99,0.00023357,2]
[355170282,1740943850964,-500.0,0.00023357,2]
[355170285,1740943851098,-227.07571358,0.00023357,2]
[355170287,1740943851110,-500.0,0.00023357,2]
[355170289,1740943851122,-500.0,0.00023357,2]
[355170291,1740943851132,-1323.79,0.00023357,2]
[355170293,1740943851143,-684.84,0.00023357,2]
[355170295,1740943851153,-1767.76,0.00023357,2]
[355170297,1740943851163,-500.0,0.00023357,2]
[355170299,1740943851173,-500.0,0.00023357,2]
[355170301,1740943851183,-589.57652593,0.00023357,2]
[355170303,1740943851194,-1179.19,0.00023357,2]
[355170305,1740943851203,-500.0,0.00023357,2]
[355170307,1740943851213,-500.0,0.00023357,2]
[355170308,1740943851223,-1027.39,0.00023357,2]
[355170310,1740943851233,-500.0,0.00023357,2]
[355170312,1740943851243,-275.336824,0.00023357,7]
[355170315,1740943851256,-28830.23,0.00023357,2]
[355170317,1740943851268,-500.0,0.00023357,2]
[355170319,1740943851280,-1197.97,0.00023357,2]
[355170320,1740943851290,-154.217598,0.00023357,7]
[355170322,1740943851301,-500.0,0.00023357,2]
[355170324,1740943851311,-748.11,0.00023357,2]
[355170326,1740943851321,-500.0,0.00023357,2]
[355170328,1740943851330,-500.0,0.00023357,2]
[355170330,1740943851340,-816.31,0.00023357,2]
[355170332,1740943851350,-500.0,0.00023357,2]
[355170334,1740943851360,-657.54,0.00023357,2]
[355170336,1740943851370,-500.0,0.00023357,2]
[355170338,1740943851379,-3309.1,0.00023357,2]
[355170340,1740943851389,-1343.89,0.00023357,2]
[355170342,1740943851399,-500.0,0.00023357,2]
[355170344,1740943851408,-500.0,0.00023357,2]
[355170346,1740943851418,-330.73462081,0.00023357,2]
[355170348,1740943851427,-602.72,0.00023357,2]
[355170350,1740943851437,-500.0,0.00023357,2]
[355170352,1740943851446,-500.0,0.00023357,2]
[355170354,1740943851455,-337.42919329,0.00023357,2]
[355170356,1740943851465,-500.0,0.00023357,2]
[355170357,1740943851474,-500.0,0.00023357,2]
[355170359,1740943851484,-500.0,0.00023373,2]
[355170361,1740943851494,-500.0,0.00023456,2]
[355170363,1740943851504,-500.0,0.00023456,2]
[355170365,1740943851514,-500.0,0.00023456,2]
[355170367,1740943851528,-544.5,0.00023456,2]
[355170369,1740943851537,-500.0,0.00023456,2]
[355170371,1740943851547,-500.0,0.00023457,2]
[355170373,1740943851557,-500.0,0.00023457,2]
[355170375,1740943851567,-691.14528287,0.00023606,2]
[355170377,1740943851577,-876.97,0.0002363,2]
[355170379,1740943851587,-671.91,0.0002363,2]
[355170381,1740943851597,-500.0,0.0002363,2]
[355170383,1740943851607,-477.74190616,0.0002363,2]
[355170385,1740943851616,-362.38096071,0.0002363,2]
[355170387,1740943851626,-500.0,0.0002363,2]
[355170389,1740943851636,-1050.62,0.0002363,2]
[355170391,1740943851646,-500.0,0.00023631,2]
[355170393,1740943851655,-500.0,0.00023631,2]
[355170395,1740943851664,-500.0,0.00023631,2]
[355170397,1740943851673,-391.12460047,0.00023631,2]
[355170399,1740943851682,-321.5,0.00023631,2]
[355170400,1740943851692,-500.0,0.00023631,2]
[355170403,1740943851702,-500.0,0.00023631,2]
[355170405,1740943851712,-500.0,0.00023631,2]
[355170407,1740943851722,-500.0,0.00023631,2]
[355170408,1740943851731,-300.11816529,0.00023631,2]
[355170410,1740943851740,-500.0,0.00023631,2]
[355170412,1740943851751,-619.58990939,0.00023631,2]
[355170414,1740943851761,-500.0,0.00023631,2]
[355170417,1740943851776,-500.0,0.00023631,2]
[355170418,1740943851786,-500.0,0.00023631,2]
[355170420,1740943851796,-500.0,0.00023631,2]
[355170422,1740943851805,-500.0,0.00023631,2]
[355170424,1740943851814,-500.0,0.00023631,2]
[355170426,1740943851824,-500.0,0.00023631,2]
[355170428,1740943851834,-500.0,0.00023631,2]
[355170430,1740943851843,-500.0,0.00023631,2]
[355170432,1740943851853,-2712.97,0.00023631,2]
[355170434,1740943851862,-500.0,0.00023631,2]
[355170436,1740943851871,-287.07,0.00023631,2]
[355170438,1740943851881,-500.0,0.00023631,2]
[355170440,1740943851890,-6150.41,0.00023631,2]
[355170442,1740943851899,-500.0,0.00023631,2]
[355170444,1740943851909,-500.0,0.00023631,2]
[355170446,1740943851918,-1369.99,0.00023631,2]
[355170448,1740943851929,-500.0,0.00023631,2]
[355170450,1740943851938,-500.0,0.00023631,2]
[355170452,1740943851949,-500.0,0.00023631,2]
[355170454,1740943851959,-1323.79,0.00023631,2]
[355170456,1740943851968,-684.84,0.00023631,2]
[355170457,1740943851978,-1767.76,0.00023631,2]
[355170460,1740943851988,-500.0,0.00023631,2]
[355170461,1740943851998,-314.68278945,0.00023631,2]
[355170463,1740943852007,-1179.19,0.00023631,2]
[355170465,1740943852023,-500.0,0.00023631,2]
[355170467,1740943852032,-412.58136375,0.00023631,2]
[355170469,1740943852042,-1027.39,0.00023631,2]
[355170471,1740943852052,-500.0,0.00023631,2]
[355170473,1740943852063,-28830.23,0.00023631,2]
[355170475,1740943852073,-500.0,0.00023631,2]
[355170477,1740943852083,-1197.97,0.00023631,2]
[355170479,1740943852094,-500.0,0.00023631,2]
[355170481,1740943852104,-748.11,0.00023631,2]
[355170483,1740943852114,-500.0,0.00023631,2]
[355170485,1740943852124,-500.0,0.00023631,2]
[355170487,1740943852133,-816.31,0.00023631,2]
[355170489,1740943852144,-500.0,0.00023631,2]
[355170490,1740943852154,-657.54,0.00023631,2]
[355170492,1740943852163,-500.0,0.00023631,2]
[355170494,1740943852173,-3309.1,0.00023631,2]
[355170496,1740943852182,-1343.89,0.00023631,2]
[355170498,1740943852192,-500.0,0.00023631,2]
[355170500,1740943852204,-500.0,0.00023631,2]
[355170502,1740943852214,-602.72,0.00023631,2]
[355170504,1740943852224,-184.08652413,0.00023631,2]
[355170506,1740943852234,-500.0,0.00023631,2]
[355170508,1740943852244,-500.0,0.00023631,2]
[355170510,1740943852254,-301.0532,0.00023631,7]
[355170512,1740943852265,-151.0,0.00023631,7]
[355170514,1740943852274,-500.0,0.00023631,2]
[355170515,1740943852284,-500.0,0.0002373,2]
[355170517,1740943852294,-500.0,0.0002373,2]
[355170519,1740943852303,-500.0,0.0002373,2]
[355170521,1740943852313,-544.5,0.0002373,2]
[355170523,1740943852323,-500.0,0.0002373,2]
[355170525,1740943852332,-500.0,0.00023731,2]
[355170527,1740943852341,-500.0,0.00023731,2]
[355170529,1740943852351,-876.97,0.00023904,2]
[355170531,1740943852361,-671.91,0.00023904,2]
[355170533,1740943852371,-500.0,0.00023904,2]
[355170535,1740943852381,-500.0,0.00023904,2]
[355170537,1740943852392,-1050.62,0.00023904,2]
[355170538,1740943852401,-23108.06237347,0.00023905,3]
[355170540,1740943852410,-124758.358963,0.00023905,3]
[355170542,1740943852420,-389.94,0.00023905,2]
[355170544,1740943852430,-500.0,0.00023905,2]
[355170546,1740943852439,-382.60013845,0.00023905,2]
[355170548,1740943852449,-500.0,0.00023905,2]
[355170550,1740943852458,-166.22,0.00023905,2]
[355170552,1740943852468,-538.9684994,0.00023905,2]
[355170554,1740943852478,-187.54789068,0.00023905,2]
[355170556,1740943852487,-500.0,0.00023905,2]
[355170558,1740943852497,-500.0,0.00023905,2]
[355170560,1740943852507,-500.0,0.00023905,2]
[355170562,1740943852518,-500.0,0.00023905,2]
[355170563,1740943852528,-500.0,0.00023905,2]
[355170565,1740943852538,-500.0,0.00023905,2]
[355170567,1740943852548,-381.24687421,0.00023905,2]
[355170569,1740943852557,-500.0,0.00023905,2]
[355170571,1740943852567,-151.0,0.00023905,7]
[355170573,1740943852576,-500.0,0.00023905,2]
[355170575,1740943852586,-500.0,0.00023905,2]
[355170577,1740943852595,-2712.97,0.00023905,2]
[355170579,1740943852605,-500.0,0.00023905,2]
[355170581,1740943852615,-151.0,0.00023905,7]
[355170583,1740943852624,-500.0,0.00023905,2]
[355170585,1740943852634,-151.0,0.00023905,7]
[355170587,1740943852643,-151.0,0.00023905,7]
[355170589,1740943852653,-6150.41,0.00023905,2]
[355170590,1740943852662,-500.0,0.00023905,2]
[355170592,1740943852671,-500.0,0.00023905,2]
[355170594,1740943852681,-1369.99,0.00023905,2]
[355170596,1740943852691,-500.0,0.00023905,2]
[355170598,1740943852701,-500.0,0.00023905,2]
[355170600,1740943852711,-500.0,0.00023905,2]
[355170602,1740943852720,-1323.79,0.00023905,2]
[355170604,1740943852730,-684.84,0.00023905,2]
[355170606,1740943852740,-1767.76,0.00023905,2]
[355170608,1740943852750,-500.0,0.00023905,2]
[355170610,1740943852759,-1179.19,0.00023905,2]
[355170612,1740943852769,-500.0,0.00023905,2]
[355170614,1740943852779,-1027.39,0.00023905,2]
[355170616,1740943852788,-500.0,0.00023905,2]
[355170618,1740943852797,-28830.23,0.00023905,2]
[355170620,1740943852807,-500.0,0.00023905,2]
[355170622,1740943852816,-1197.97,0.00023905,2]
[355170623,1740943852826,-500.0,0.00023905,2]
[355170625,1740943852835,-748.11,0.00023905,2]
[355170627,1740943852845,-151.89045388,0.00023905,2]
[355170629,1740943852857,-500.0,0.00023905,2]
[355170631,1740943852866,-816.31,0.00023905,2]
[355170633,1740943852876,-500.0,0.00023905,2]
[355170635,1740943852886,-657.54,0.00023905,2]
[355170637,1740943852895,-500.0,0.00023905,2]
[355170639,1740943852905,-3309.1,0.00023905,2]
[355170641,1740943852914,-1343.89,0.00023905,2]
[355170643,1740943852924,-500.0,0.00023905,2]
[355170644,1740943852934,-500.0,0.00023905,2]
[355170645,1740943852944,-602.72,0.00023905,2]
[355170646,1740943852953,-500.0,0.00023905,2]
[355170647,1740943852963,-500.0,0.00023905,2]
[355170648,1740943852973,-500.0,0.00023905,2]
[355170649,1740943852983,-296.65128264,0.00023947,2]
[355170650,1740943852992,-500.0,0.00024004,2]
[355170651,1740943853001,-500.0,0.00024004,2]
[355170652,1740943853011,-500.0,0.00024004,2]
[355170653,1740943853022,-544.5,0.00024004,2]
[355170654,1740943853035,-500.0,0.00024004,2]
[355170655,1740943853045,-500.0,0.00024005,2]
[355170656,1740943853054,-500.0,0.00024005,2]
[355170657,1740943853064,-500.0,0.00024109,2]
[355170658,1740943853076,-500.0,0.00024109,2]
[355170659,1740943853086,-500.0,0.00024109,2]
[355170660,1740943853096,-500.0,0.00024109,2]
[355170661,1740943853106,-500.0,0.00024109,2]
[355170662,1740943853117,-500.0,0.00024109,2]
[355170663,1740943853126,-258.88334477,0.00024109,2]
[355170665,1740943853136,-876.97,0.00024178,2]
[355170667,1740943853145,-671.91,0.00024178,2]
[355170669,1740943853155,-500.0,0.00024178,2]
[355170671,1740943853165,-500.0,0.00024178,2]
[355170673,1740943853175,-1050.62,0.00024178,2]
[355170675,1740943853184,-19629.85965445,0.00024179,3]
[355170677,1740943853194,-500.0,0.00024179,2]
[355170679,1740943853203,-500.0,0.00024179,2]
[355170680,1740943853212,-500.0,0.00024179,2]
[355170682,1740943853222,-500.0,0.00024179,2]